bitfinex-derivatives/quotes_ETHF0:USTF0_20241105
["timestamp","ask_amount","ask_price","bid_price","bid_amount"]
[1730768326019,0.41636,2403.3,2403.2,0.79492139]
[1730768326215,6.07726213,2403.3,2403.2,0.79492139]
[1730768326418,6.07726213,2403.3,2403.2,0.21424772]
[1730768327318,48.62685662,2403.3,2403.2,0.21424772]
[1730768328018,45.37716,2403.3,2403.2,0.21424772]
[1730768328818,0.41641,2403.0,2402.9,0.5515]
[1730768329025,0.41641,2403.0,2402.9,1.34625521]
[1730768329726,0.41641,2403.0,2402.9,1.34623695]
[1730768330823,3.2078,2403.2,2402.9,1.34623695]
[1730768331026,0.4164,2403.1,2403.0,0.79475172]
[1730768333625,0.4164,2403.1,2403.0,0.21420052]
[1730768334327,0.4164,2403.1,2403.0,0.79475425]
[1730768337122,0.4164,2403.1,2403.0,0.79531733]
[1730768340728,0.4164,2403.1,2403.0,0.79524769]
[1730768342126,3.2078,2403.6,2403.0,4.95684769]
[1730768342332,0.41634,2403.5,2403.3,0.41635]
[1730768342521,0.41634,2403.5,2403.4,1.34964475]
[1730768342722,3.2078,2403.6,2403.5,0.41633]
[1730768342923,45.2368,2403.9,2403.5,0.79514475]
[1730768343134,45.2368,2403.9,2403.6,1.34634475]
[1730768343135,4.4368,2403.9,2403.6,1.34634475]
[1730768343337,4.85307,2403.9,2403.7,1.15683466]
[1730768343635,40.8,2403.8,2403.6,0.5512]
[1730768343837,0.41629,2403.7,2403.6,0.5512]
[1730768344138,0.41629,2403.7,2403.6,0.21460915]
[1730768344338,0.41631,2403.6,2403.5,0.5512]
[1730768344535,0.4163,2403.7,2403.5,1.18205828]
[1730768344734,0.4163,2403.7,2403.6,0.21452774]
[1730768346234,0.4163,2403.7,2403.6,0.63083774]
[1730768346527,40.8,2403.8,2403.7,0.41629]
[1730768346727,40.8,2403.8,2403.7,0.63069195]
[1730768347527,40.8,2403.8,2403.5,0.5512]
[1730768347728,0.4163,2403.7,2403.6,0.21432465]
[1730768348440,0.41631,2403.6,2403.5,0.96752]
[1730768348630,0.41631,2403.6,2403.5,0.76547562]
[1730768348937,0.41631,2403.6,2403.5,0.5512]
[1730768349432,0.41633,2403.5,2403.4,0.5545]
[1730768349639,0.41633,2403.5,2403.4,1.089]
[1730768351035,3.62413,2403.5,2403.4,1.089]
[1730768351233,0.41643,2402.9,2402.8,3.62424]
[1730768351434,3.24969662,2403.3,2402.8,0.21428296]
[1730768351630,4.24877,2403.2,2402.7,1.46455]
[1730768351830,0.41645,2402.8,2402.7,1.0481]
[1730768352029,0.41645,2402.8,2402.7,1.26242046]
[1730768352442,0.41645,2402.8,2402.7,1.67888046]
[1730768352938,0.41645,2402.8,2402.7,1.26242046]
[1730768353533,41.21645,2402.8,2402.7,1.26242046]
[1730768354635,48.1694,2402.8,2402.3,3.2078]
[1730768354838,0.41659,2402.0,2401.9,1.09032557]
[1730768355142,0.41659,2402.0,2401.9,0.21166677]
[1730768355331,0.41659,2402.0,2401.8,0.5188]
[1730768355332,0.4166,2401.9,2401.8,0.5188]
[1730768355530,0.4166,2401.9,2401.8,0.73034296]
[1730768355837,1.229,2402.3,2401.8,0.73034296]
[1730768355838,0.41659,2402.0,2401.8,0.73034296]
[1730768356035,0.4166,2401.9,2401.8,0.5188]
[1730768356630,0.4166,2401.9,2401.7,0.5308]
[1730768356631,0.41662,2401.8,2401.7,0.5308]
[1730768357234,41.21662,2401.8,2401.7,0.5308]
[1730768359942,41.21662,2401.8,2401.5,3.2078]
[1730768359943,0.41666,2401.6,2401.5,3.2078]
[1730768360136,40.8,2401.8,2401.5,3.2078]
[1730768360337,0.41666,2401.6,2401.5,3.2078]
[1730768360838,40.8,2401.8,2401.5,3.2078]
[1730768361039,0.41666,2401.6,2401.5,3.2078]
[1730768361936,0.41666,2401.6,2401.4,0.41669]
[1730768362139,0.41666,2401.6,2401.5,3.2078]
[1730768363237,40.8,2401.8,2401.5,7.3718]
[1730768363431,4.47869662,2402.2,2401.6,0.41665]
[1730768363635,0.41664,2401.7,2401.6,0.5199]
[1730768364645,0.41664,2401.7,2401.6,0.93656]
[1730768364840,0.41663,2401.8,2401.6,0.93656]
[1730768365343,0.41663,2401.8,2401.6,0.5199]
[1730768365544,0.41661,2401.9,2401.6,0.5199]
[1730768365734,0.41661,2401.9,2401.7,0.41662]
[1730768365936,40.8,2402.0,2401.7,0.41662]
[1730768366233,0.41662,2401.8,2401.7,0.41662]
[1730768366439,1.229,2402.2,2401.6,0.5199]
[1730768366639,0.41659,2402.0,2401.7,0.41664]
[1730768366941,0.41659,2402.0,2401.8,0.5109]
[1730768367643,0.41659,2402.0,2401.9,0.4166]
[1730768368547,0.4166,2401.9,2401.8,0.5109]
[1730768368938,0.4166,2401.9,2401.8,0.92752]
[1730768369547,0.41664,2401.7,2401.6,0.5199]
[1730768369846,0.41664,2401.7,2401.5,3.2078]
[1730768369847,4.29118662,2402.0,2401.5,3.2078]
[1730768370047,0.41666,2401.6,2401.5,3.2078]
[1730768371144,0.41666,2401.6,2401.5,3.62447]
[1730768371447,0.41666,2401.6,2401.5,3.2078]
[1730768372849,4.58066,2401.6,2401.5,3.2078]
[1730768373148,0.41666,2401.6,2401.5,3.2078]
[1730768373847,0.41666,2401.6,2401.5,3.7431]
[1730768374551,0.41666,2401.6,2401.5,0.95197]
[1730768376254,0.41666,2401.6,2401.5,0.5353]
[1730768377157,0.41664,2401.7,2401.6,0.41665]
[1730768377346,0.41666,2401.6,2401.5,0.95196]
[1730768377546,0.41666,2401.6,2401.5,0.5353]
[1730768381754,44.04969662,2402.2,2401.5,4.6993]
[1730768381962,0.41659,2402.0,2401.8,3.2078]
[1730768382260,0.4166,2402.0,2401.9,0.4166]
[1730768382460,0.4166,2401.9,2401.8,3.62441]
[1730768382860,44.04969662,2402.2,2401.5,3.7431]
[1730768383067,0.41661,2401.9,2401.8,0.41662]
[1730768384263,0.41662,2401.8,2401.7,0.41663]
[1730768384563,0.41661,2401.9,2401.8,0.41662]
[1730768388364,45.05599662,2402.2,2401.7,0.5443]
[1730768388559,40.8,2402.2,2401.7,0.5443]
[1730768388766,40.8,2402.2,2402.1,0.41657]
[1730768389270,40.8,2402.2,2401.7,0.5443]
[1730768389465,0.41661,2401.9,2401.8,0.41661]
[1730768389659,0.4166,2402.0,2401.9,0.4166]
[1730768389855,0.41661,2401.9,2401.8,0.41661]
[1730768390560,44.58289662,2402.2,2401.7,0.5443]
[1730768390765,0.4166,2402.0,2401.9,0.4166]
[1730768391066,0.4166,2402.0,2401.9,0.41659]
[1730768391067,0.41659,2402.0,2401.9,0.41659]
[1730768391458,0.41661,2401.9,2401.8,0.41661]
[1730768393370,0.41662,2401.8,2401.7,0.96093]
[1730768393561,0.41662,2401.8,2401.7,0.41663]
[1730768396266,0.41664,2401.7,2401.6,0.95164]
[1730768396471,0.41664,2401.7,2401.6,2.45865655]
[1730768396767,0.41664,2401.7,2401.6,1.53126494]
[1730768397379,0.41664,2401.7,2401.6,2.45937644]
[1730768397771,0.41664,2401.7,2401.6,2.04273644]
[1730768397978,0.41664,2401.7,2401.6,1.92439644]
[1730768398272,4.29118662,2402.0,2401.6,1.50883113]
[1730768398578,0.41666,2401.6,2401.5,2.04229557]
[1730768398786,0.41666,2401.6,2401.5,3.55114557]
[1730768399385,0.41666,2401.6,2401.5,4.71236026]
[1730768399784,0.41666,2401.6,2401.5,3.55114557]
[1730768400491,0.41666,2401.6,2401.5,6.75958452]
[1730768400794,0.41663,2401.8,2401.7,0.41663]
[1730768400994,0.41663,2401.8,2401.7,3.01753801]
[1730768401286,1.229,2402.0,2401.8,0.41662]
[1730768401287,4.8534,2402.0,2401.8,0.41662]
[1730768401487,4.8534,2402.0,2401.9,2.00641767]
[1730768401899,4.8534,2402.0,2401.9,2.42301767]
[1730768402097,4.4368,2402.0,2401.9,2.42301767]
[1730768402294,40.8,2402.2,2402.1,0.41657]
[1730768402504,3.2078,2402.3,2402.2,0.41655]
[1730768402790,4.85328,2402.7,2402.5,0.41649]
[1730768402993,4.4368,2402.7,2402.6,1.51280692]
[1730768403196,4.85326,2402.7,2402.6,2.02562064]
[1730768403393,1.64546,2402.7,2402.6,1.09632692]
[1730768403588,9.01566,2402.7,2402.6,0.58032692]
[1730768403789,8.5992,2402.7,2402.6,0.58056571]
[1730768403998,0.41653,2402.3,2402.2,1.0916926]
[1730768404197,41.21653,2402.3,2402.2,2.60118319]
[1730768404400,41.21653,2402.3,2402.2,1.50949059]
[1730768404595,41.21653,2402.3,2402.2,1.50925213]
[1730768404985,41.21653,2402.3,2402.2,2.60094473]
[1730768405189,41.21653,2402.3,2402.2,1.50925213]
[1730768405489,41.21653,2402.3,2402.2,0.58048159]
[1730768406784,48.58673,2402.3,2402.2,0.58048159]
[1730768406996,0.41657,2402.1,2402.0,0.5179]
[1730768407192,0.41657,2402.1,2402.0,2.07941801]
[1730768407500,3.66626662,2402.1,2402.0,0.57034975]
[1730768407894,3.66626662,2402.1,2401.6,1.5083426]
[1730768407895,7.41289662,2402.1,2401.6,0.5259]
[1730768408205,0.41664,2401.7,2401.6,0.5259]
[1730768408388,3.24969662,2401.8,2401.4,3.2078]
[1730768408702,3.24969662,2401.5,2401.1,4.8049926]
[1730768408887,3.24969662,2401.2,2400.9,1.0916926]
[1730768409194,3.24969662,2401.2,2400.8,4.84328836]
[1730768409195,3.24969662,2401.2,2401.0,0.79997699]
[1730768409396,3.24969662,2401.2,2401.1,0.21642131]
[1730768409593,3.66641662,2401.2,2401.1,0.21642131]
[1730768409794,44.46641662,2401.2,2401.1,0.21642131]
[1730768410392,48.63121662,2401.2,2401.1,0.21642131]
[1730768410799,0.41678,2400.9,2400.8,3.2078]
[1730768410995,0.41678,2400.9,2400.8,4.0043155]
[1730768411293,48.21449662,2401.2,2400.8,3.84095261]
[1730768411294,0.41677,2401.0,2400.8,3.84095261]
[1730768411491,0.41677,2401.0,2400.9,0.21636261]
[1730768411693,44.53999662,2401.2,2400.9,0.21636261]
[1730768411892,44.04969662,2401.2,2401.0,0.21636261]
[1730768412096,40.8,2401.2,2401.1,0.2162446]
[1730768412491,0.5141,2401.5,2401.3,0.4167]
[1730768412492,1.64468,2401.5,2401.3,0.4167]
[1730768412697,0.4167,2401.4,2401.1,0.41672]
[1730768413000,0.4167,2401.4,2401.2,0.63290392]
[1730768413195,40.8,2401.5,2401.3,0.21618392]
[1730768413391,40.8,2401.5,2401.4,1.2829588]
[1730768413594,3.24969662,2401.6,2401.4,1.2829588]
[1730768413898,0.41672,2401.3,2401.1,3.2078]
[1730768414088,0.41672,2401.3,2401.2,0.21614639]
[1730768414296,40.8,2401.5,2401.2,0.21614639]
[1730768414591,1.64461,2401.9,2401.6,0.41664]
[1730768414896,41.21659,2402.0,2401.7,1.28290407]
[1730768415098,41.21659,2402.0,2401.8,0.63271407]
[1730768415300,40.8,2402.0,2401.9,0.632694]
[1730768415498,1.64458,2402.1,2401.9,0.632694]
[1730768415693,3.2078,2402.3,2401.9,4.1632]
[1730768415895,3.62435,2402.3,2402.0,0.63269166]
[1730768416096,3.62435,2402.3,2401.7,4.2746]
[1730768416097,0.41652,2402.4,2402.2,0.41655]
[1730768416395,0.41654,2402.3,2402.0,3.2078]
[1730768416594,4.4358,2402.7,2402.1,0.21607791]
[1730768416595,0.41656,2402.2,2402.1,0.21607791]
[1730768416992,4.1632,2402.2,2401.7,1.0668]
[1730768417294,0.41659,2402.0,2401.8,0.63272888]
[1730768417503,0.41659,2402.0,2401.9,0.21611888]
[1730768418094,0.41661,2401.9,2401.7,1.48343]
[1730768418397,0.4166,2401.9,2401.8,0.21609833]
[1730768418604,3.2078,2402.1,2401.4,4.17118]
[1730768418605,0.41666,2401.6,2401.4,4.17118]
[1730768418998,0.41665,2401.7,2401.5,0.21611304]
[1730768419203,0.41665,2401.7,2401.6,0.21611304]
[1730768419502,4.4358,2402.1,2401.6,0.21611304]
[1730768419703,3.66631662,2401.8,2401.7,0.21611304]
[1730768419891,0.41667,2401.5,2401.4,3.7545]
[1730768420201,0.41667,2401.5,2401.4,3.97062968]
[1730768420595,0.41666,2401.6,2401.4,3.97062968]
[1730768420793,0.41665,2401.7,2401.5,0.62999058]
[1730768421097,0.41664,2401.8,2401.6,0.62996614]
[1730768421299,0.41664,2401.8,2401.7,0.21331614]
[1730768421690,0.41664,2401.8,2401.7,0.73901614]
[1730768421894,0.41666,2401.6,2401.4,4.17118]
[1730768422103,0.41665,2401.7,2401.5,0.63002645]
[1730768422409,0.41663,2401.8,2401.6,0.62999645]
[1730768422704,0.41663,2401.8,2401.7,0.21335758]
[1730768422911,0.41663,2401.8,2401.6,0.41665]
[1730768423199,0.41664,2401.8,2401.7,0.21335193]
[1730768425301,7.78844,2401.8,2401.7,0.21335193]
[1730768425693,7.78844,2401.8,2401.4,0.5467]
[1730768425694,0.41667,2401.5,2401.4,0.5467]
[1730768426095,0.41667,2401.5,2401.4,0.76008842]
[1730768426594,0.41667,2401.5,2401.4,0.76005945]
[1730768426796,0.41667,2401.5,2401.4,0.7600684]
[1730768426997,0.41667,2401.5,2401.4,0.5467]
[1730768427397,0.41667,2401.5,2401.4,0.76006191]
[1730768428001,0.41667,2401.5,2401.4,0.21336191]
[1730768428197,4.164,2401.5,2401.1,0.5128]
[1730768428403,0.41672,2401.2,2401.1,0.5128]
[1730768428603,0.41672,2401.2,2401.1,0.21333699]
[1730768428799,0.41676,2401.0,2400.9,0.5099]
[1730768429006,0.41676,2401.0,2400.9,0.72326868]
[1730768429209,41.21676,2401.0,2400.9,0.72326845]
[1730768429410,40.8,2401.0,2400.9,1.14004845]
[1730768429611,41.21676,2401.0,2400.9,1.14004845]
[1730768429905,40.8,2401.0,2400.9,1.14004845]
[1730768430707,3.24969662,2401.3,2400.9,1.14003845]
[1730768430901,0.41676,2401.0,2400.9,0.92667]
[1730768431096,0.41676,2401.0,2400.9,1.13995186]
[1730768431300,40.8,2401.2,2400.9,0.72318186]
[1730768431509,0.41675,2401.1,2401.0,0.21328186]
[1730768432307,0.41676,2401.0,2400.9,0.5099]
[1730768432505,0.41676,2401.0,2400.9,0.72314776]
[1730768432706,0.41676,2401.0,2400.9,1.13992776]
[1730768433409,0.41676,2401.0,2400.9,1.13989359]
[1730768434911,0.41675,2401.1,2401.0,0.41676]
[1730768435114,3.66641662,2401.3,2401.1,0.41673]
[1730768435305,3.66641662,2401.3,2401.2,0.41672]
[1730768435506,3.66641662,2401.3,2400.9,3.7177]
[1730768435507,0.41673,2401.2,2400.9,3.7177]
[1730768435707,0.41673,2401.2,2401.0,0.62994624]
[1730768435908,0.41674,2401.2,2401.0,0.41675]
[1730768436217,0.41682,2400.7,2400.5,0.41684]
[1730768436514,1.04191,2401.0,2400.5,0.5202]
[1730768436515,0.41683,2400.6,2400.5,0.5202]
[1730768436703,0.41683,2400.6,2400.5,1.1502579]
[1730768436905,0.41683,2400.6,2400.5,0.5202]
[1730768437105,0.41683,2400.6,2400.5,0.93705]
[1730768438613,0.41683,2400.6,2400.5,0.5202]
[1730768439105,1.04212,2400.5,2399.9,3.2078]
[1730768439305,3.66662662,2400.0,2399.9,3.2078]
[1730768439820,3.66662662,2400.0,2399.7,0.9875]
[1730768439821,0.41697,2399.8,2399.7,0.9875]
[1730768440217,0.41696,2399.9,2399.7,0.9875]
[1730768440408,0.41697,2399.8,2399.7,0.9875]
[1730768441707,3.24969662,2400.0,2399.7,1.40448]
[1730768441914,0.41697,2399.8,2399.7,0.9875]
[1730768442414,41.21697,2399.8,2399.7,0.9875]
[1730768442621,40.8,2399.8,2399.7,0.9875]
[1730768443117,41.21697,2399.8,2399.7,0.9875]
[1730768443818,40.8,2399.8,2399.7,1.40449]
[1730768444015,40.8,2399.8,2399.7,0.9875]
[1730768444519,41.21697,2399.8,2399.7,0.9875]
[1730768445022,0.41697,2399.8,2399.7,0.9875]
[1730768445315,41.21697,2399.8,2399.7,0.9875]
[1730768445816,0.41697,2399.8,2399.7,0.9875]
[1730768446018,3.24969662,2400.2,2399.7,5.1547]
[1730768446321,3.24969662,2400.2,2400.1,0.41692]
[1730768446813,3.66659662,2400.2,2400.0,0.41693]
[1730768447206,3.24969662,2400.2,2400.1,0.5319]
[1730768447407,3.24969662,2400.4,2400.3,0.41686]
[1730768449716,3.7346,2400.9,2400.3,4.1664]
[1730768449717,6.45749662,2400.9,2400.3,4.1664]
[1730768449916,1.251,2401.0,2400.5,0.41683]
[1730768449917,3.66650662,2400.7,2400.5,0.41683]
[1730768450109,3.66650662,2400.7,2400.6,0.41683]
[1730768450315,3.66650662,2400.7,2400.5,0.5118]
[1730768450515,3.66650662,2400.7,2400.5,0.92863]
[1730768450717,3.24969662,2400.7,2400.6,0.41683]
[1730768451620,3.24969662,2401.2,2400.6,4.1656]
[1730768451815,0.41675,2401.1,2400.9,0.41677]
[1730768452123,0.41675,2401.1,2401.0,0.5071]
[1730768452523,41.21675,2401.1,2401.0,0.5071]
[1730768452823,40.8,2401.1,2401.0,0.5071]
[1730768453125,41.21674,2401.1,2401.0,0.5071]
[1730768453328,41.21674,2401.1,2400.5,1.5539]
[1730768453329,44.9648,2401.1,2400.5,0.5118]
[1730768453517,3.66651662,2400.7,2400.5,0.92864]
[1730768453719,0.41683,2400.6,2400.5,0.5118]
[1730768454422,3.24969662,2400.7,2400.6,0.41683]
[1730768454721,3.24969662,2400.9,2400.6,0.41682]
[1730768454923,0.41681,2400.7,2400.6,0.41682]
[1730768455617,0.4168,2400.8,2400.7,0.4168]
[1730768455921,44.04969662,2401.1,2400.7,3.2078]
[1730768456226,44.46644662,2401.1,2400.9,0.41677]
[1730768456521,44.04969662,2401.1,2401.0,0.41676]
[1730768457025,44.46643662,2401.1,2401.0,0.41676]
[1730768457416,44.04969662,2401.1,2401.0,0.41676]
[1730768457619,40.8,2401.1,2401.0,0.41676]
[1730768457920,41.21674,2401.1,2401.0,0.41676]
[1730768458822,40.8,2401.1,2401.0,0.41676]
[1730768459229,40.8,2401.1,2401.0,4.58156]
[1730768460124,40.8,2401.1,2401.0,0.41676]
[1730768460521,40.8,2401.1,2401.0,1.43476]
[1730768460722,0.41666,2401.6,2401.0,1.43476]
[1730768461022,1.04147,2402.1,2401.5,3.2078]
[1730768461023,3.45869662,2402.0,2401.5,3.2078]
[1730768461217,0.41663,2401.8,2401.7,0.41664]
[1730768461415,40.8,2401.9,2401.8,0.41662]
[1730768461619,40.8,2401.9,2401.7,3.2078]
[1730768461818,40.8,2401.9,2401.8,0.41662]
[1730768461819,41.21662,2401.9,2401.8,0.41662]
[1730768462028,40.8,2401.9,2401.8,0.41662]
[1730768463828,40.8,2401.9,2401.7,3.2078]
[1730768464126,0.41662,2401.8,2401.7,3.2078]
[1730768465128,0.41664,2401.7,2401.6,0.5126]
[1730768465519,44.04969662,2401.9,2401.6,0.5126]
[1730768465520,40.8,2401.9,2401.7,0.41664]
[1730768465721,0.41664,2401.7,2401.6,3.7204]
[1730768467935,0.41664,2401.7,2401.6,0.5126]
[1730768468223,0.41668,2401.5,2401.3,0.4167]
[1730768468433,0.41668,2401.5,2401.3,0.9143]
[1730768468434,0.41667,2401.5,2401.3,0.9143]
[1730768468730,3.24969662,2401.6,2401.3,1.4561]
[1730768469033,0.41669,2401.4,2401.3,1.4561]
[1730768469232,0.41669,2401.4,2401.3,1.0394]
[1730768470721,0.41666,2401.6,2401.5,0.41667]
[1730768471732,0.41666,2401.6,2401.3,1.0394]
[1730768471933,0.41668,2401.5,2401.3,1.4561]
[1730768474333,7.73349662,2401.8,2401.3,1.4561]
[1730768474532,0.41669,2401.5,2401.3,1.4561]
[1730768475931,7.73349662,2401.8,2401.3,1.4561]
[1730768475932,0.41669,2401.4,2401.3,1.0394]
[1730768476128,0.41669,2401.4,2401.1,3.2078]
[1730768476129,0.41672,2401.2,2401.1,3.2078]
[1730768476330,0.41678,2400.9,2400.8,3.7153]
[1730768476927,0.41678,2400.9,2400.5,0.5311]
[1730768476928,48.21449662,2400.9,2400.5,3.2078]
[1730768477128,3.66652662,2400.6,2400.5,3.2078]
[1730768477633,0.4169,2400.2,2400.1,3.2078]
[1730768477837,3.24969662,2400.3,2399.8,3.2078]
[1730768478041,3.24969662,2400.3,2399.8,3.7224]
[1730768478236,3.66658662,2400.3,2399.8,3.7224]
[1730768478439,0.4169,2400.2,2400.0,0.41692]
[1730768478639,3.24969662,2400.3,2399.8,3.7224]
[1730768478837,0.41692,2400.1,2399.9,0.41694]
[1730768479234,3.24969662,2400.3,2399.8,3.7224]
[1730768479633,0.41692,2400.1,2399.9,0.41694]
[1730768480035,3.24969662,2400.3,2399.8,0.5146]
[1730768480234,0.41695,2399.9,2399.8,0.5146]
[1730768480840,0.41697,2399.8,2399.7,3.7298]
[1730768481631,3.24969662,2400.0,2399.7,3.7298]
[1730768482040,0.41696,2399.9,2399.7,3.7298]
[1730768482338,3.24969662,2400.0,2399.7,3.7298]
[1730768482639,0.41697,2399.8,2399.7,3.7298]
[1730768482838,0.41696,2399.9,2399.7,4.14678]
[1730768483040,0.41697,2399.8,2399.7,3.7298]
[1730768483246,41.21697,2399.8,2399.7,3.7298]
[1730768483442,41.21697,2399.8,2399.7,3.2078]
[1730768484234,40.8,2399.8,2399.5,0.9909]
[1730768484538,40.8,2399.8,2399.5,1.4079]
[1730768484539,0.41699,2399.7,2399.5,1.4079]
[1730768484739,0.41699,2399.7,2399.4,3.2078]
[1730768484740,0.41701,2399.6,2399.4,3.62483]
[1730768484947,40.8,2399.8,2399.4,3.62483]
[1730768485144,0.41702,2399.5,2399.4,3.2078]
[1730768486845,3.24969662,2399.6,2399.4,3.2078]
[1730768486846,44.04969662,2399.8,2399.4,3.2078]
[1730768487048,0.417,2399.7,2399.4,3.62483]
[1730768487345,0.41702,2399.5,2399.4,3.2078]
[1730768489147,0.41704,2399.4,2399.3,0.4886]
[1730768489349,0.41704,2399.4,2399.2,0.41707]
[1730768489550,0.41704,2399.4,2399.2,0.89457]
[1730768489945,0.41704,2399.4,2399.2,0.4775]
[1730768490142,4.58505,2399.3,2398.7,0.4887]
[1730768490343,0.41715,2398.8,2398.6,4.60817]
[1730768490546,3.66685662,2398.7,2398.6,3.2078]
[1730768490751,1.277,2398.8,2398.7,0.41716]
[1730768491047,0.41715,2398.8,2398.6,0.41717]
[1730768491449,4.52669662,2399.1,2398.6,0.41718]
[1730768491450,40.8,2398.7,2398.6,0.41718]
[1730768491749,40.8,2398.7,2398.6,3.62498]
[1730768493156,0.41715,2398.8,2398.6,0.41718]
[1730768493544,40.8,2398.8,2398.5,3.2078]
[1730768493746,40.8,2398.8,2398.7,0.41716]
[1730768494151,4.94379662,2399.1,2398.6,0.5176]
[1730768494353,1.69409,2399.1,2398.9,0.41712]
[1730768494649,40.8,2399.2,2399.0,0.4767]
[1730768494852,3.24969662,2399.3,2399.1,0.41709]
[1730768494853,3.66675662,2399.3,2399.1,0.41709]
[1730768495050,3.66675662,2399.3,2399.1,0.90439]
[1730768495249,3.24969662,2399.3,2399.1,0.90439]
[1730768495451,0.41707,2399.2,2399.1,0.90439]
[1730768496648,3.24969662,2399.3,2399.2,0.41707]
[1730768497245,1.69405,2399.4,2399.2,0.41707]
[1730768497246,0.41705,2399.4,2399.2,0.41706]
[1730768497448,1.68403,2399.5,2399.3,0.41705]
[1730768497754,0.41705,2399.4,2399.2,0.41706]
[1730768497951,1.267,2399.5,2399.1,0.4873]
[1730768498157,1.68403,2399.5,2399.3,0.41704]
[1730768498651,1.68403,2399.5,2399.2,0.41706]
[1730768498652,0.41704,2399.4,2399.2,0.41706]
[1730768499756,41.21704,2399.4,2399.2,0.41706]
[1730768500346,0.41705,2399.3,2399.1,3.6951]
[1730768500551,0.41707,2399.2,2399.1,0.4873]
[1730768500759,3.66675662,2399.3,2399.1,0.4873]
[1730768501060,3.66675662,2399.3,2399.1,0.90438]
[1730768501659,0.41706,2399.3,2399.1,0.90438]
[1730768502058,40.8,2399.4,2399.3,0.41705]
[1730768502359,1.31391464,2399.9,2399.6,0.41699]
[1730768502360,0.41697,2399.8,2399.6,0.41699]
[1730768502558,0.41697,2399.8,2399.7,0.4916]
[1730768502854,0.41697,2399.8,2399.4,0.41702]
[1730768502855,44.04969662,2399.8,2399.4,0.41702]
[1730768503060,0.41701,2399.6,2399.5,0.5137]
[1730768503667,44.04969662,2399.8,2399.5,0.5137]
[1730768504155,0.417,2399.6,2399.5,0.5137]
[1730768504355,44.04969662,2399.8,2399.5,0.5137]
[1730768504356,0.41699,2399.7,2399.5,0.93071]
[1730768504753,44.04969662,2399.8,2399.5,0.5137]
[1730768504949,0.417,2399.6,2399.5,0.93072]
[1730768505166,0.417,2399.6,2399.5,0.5137]
[1730768505350,44.04969662,2399.8,2399.5,0.93072]
[1730768505662,0.417,2399.7,2399.5,0.93072]
[1730768505963,44.46666662,2399.8,2399.6,0.41699]
[1730768506161,40.8,2399.8,2399.7,0.41699]
[1730768506460,0.417,2399.6,2399.5,0.5137]
[1730768507270,41.217,2399.6,2399.5,0.5137]
[1730768510267,40.8,2399.6,2399.1,3.62488]
[1730768510457,0.41705,2399.3,2399.2,0.4788]
[1730768512266,0.41705,2399.3,2399.2,0.89587]
[1730768514952,40.8,2399.6,2399.2,0.4788]
[1730768514953,0.41705,2399.4,2399.2,0.4788]
[1730768515156,0.41705,2399.4,2399.3,0.41705]
[1730768515364,0.41705,2399.3,2399.2,0.89587]
[1730768515670,3.24969662,2399.3,2399.0,0.4768]
[1730768515870,0.41709,2399.1,2399.0,0.4768]
[1730768517862,7.41769662,2399.1,2398.9,0.4975]
[1730768518069,4.1688,2399.0,2398.6,4.2238]
[1730768518272,3.24969662,2399.1,2398.7,0.4937]
[1730768518567,0.41714,2398.8,2398.7,0.91086]
[1730768519260,0.41714,2398.9,2398.7,0.91085]
[1730768519462,0.41714,2398.8,2398.7,0.4937]
[1730768519963,0.41714,2398.8,2398.7,0.91086]
[1730768520163,0.41714,2398.8,2398.7,1.48928482]
[1730768520566,0.41714,2398.8,2398.7,1.07212482]
[1730768521172,0.41714,2398.8,2398.7,1.48928482]
[1730768521764,3.24969662,2399.1,2398.7,1.07212482]
[1730768521964,3.24969662,2399.1,2398.8,0.99555482]
[1730768521965,0.41712,2398.9,2398.8,0.99555482]
[1730768522172,0.41712,2398.9,2398.8,1.92297922]
[1730768522373,0.41712,2398.9,2398.8,1.50584922]
[1730768524568,0.41712,2398.9,2398.8,1.92297922]
[1730768524861,0.41712,2398.9,2398.8,1.92298922]
[1730768525061,0.41712,2398.9,2398.8,1.50811084]
[1730768525369,0.41712,2398.9,2398.8,1.92524084]
[1730768525569,0.41705,2399.4,2399.2,0.41706]
[1730768525775,3.66673662,2399.4,2399.3,0.58013349]
[1730768526069,0.41712,2398.9,2398.8,1.63644999]
[1730768526264,0.41712,2398.9,2398.8,3.14522115]
[1730768528865,3.5933,2399.2,2398.8,3.14522115]
[1730768529065,0.41711,2399.0,2398.9,1.92589116]
[1730768529264,0.41711,2399.0,2398.9,1.50877116]
[1730768529669,0.41711,2399.0,2398.9,1.92589116]
[1730768530372,3.24969662,2399.4,2398.9,1.50877116]
[1730768530569,1.66406,2399.3,2399.0,2.00177116]
[1730768530868,1.247,2399.3,2399.1,1.50877116]
[1730768531069,45.37426718,2399.6,2399.2,2.01397411]
[1730768531070,40.8,2399.6,2399.2,2.01397411]
[1730768531262,0.41702,2399.5,2399.4,3.2078]
[1730768531466,4.58422,2399.5,2399.4,0.5802966]
[1730768531666,0.41705,2399.3,2399.2,0.5049]
[1730768531863,0.41705,2399.3,2399.2,1.08544781]
[1730768533765,0.41705,2399.3,2399.2,1.50251781]
[1730768533968,0.41704,2399.4,2399.3,0.41705]
[1730768534175,0.41704,2399.4,2399.2,0.5049]
[1730768534371,45.2548,2399.6,2399.2,0.92196]
[1730768534679,0.41705,2399.3,2399.2,0.92196]
[1730768534874,0.41705,2399.3,2399.2,1.50264646]
[1730768535576,0.41705,2399.3,2399.2,1.08560713]
[1730768537969,0.41705,2399.3,2399.2,0.58070713]
[1730768538181,0.41705,2399.3,2399.0,0.493]
[1730768538182,0.41709,2399.1,2399.0,0.493]
[1730768538472,0.41709,2399.1,2399.0,1.49092944]
[1730768538678,0.41709,2399.1,2399.0,1.07382944]